[Event "Titled Tuesday Blitz May 10 Early 2022"]
[White "Jannatul, Ferdous"]
[Black "Lauridsen, Jesper Morch"]
[WhiteFideId "10212590"]
[BlackFideId "1401890"]
[WhiteElo "1707"]
[BlackElo "2210"]
[Result "1-0"]
[Round "09"]
[TimeControl "180+1"]
[Date "2022.05.11"]
[WhiteClock "0:01:14"]
[BlackClock "0:00:01"]

1. e4 {[%clk 0:03:00]}  e6 {[%clk 0:02:56]} 2. Nf3 {[%clk 0:03:00]}  c5 {[%clk 0:02:55]} 3. d4 {[%clk 0:03:00]}  cxd4 {[%clk 0:02:55]} 4. Nxd4 {[%clk 0:03:01]}  Nc6 {[%clk 0:02:55]} 5. Nc3 {[%clk 0:03:00]}  Qc7 {[%clk 0:02:55]} 6. Ndb5 {[%clk 0:03:00]}  Qb8 {[%clk 0:02:55]} 7. Bg5 {[%clk 0:02:59]}  a6 {[%clk 0:02:53]} 8. Nd4 {[%clk 0:02:59]}  Bb4 {[%clk 0:02:40]} 9. Nxc6 {[%clk 0:02:51]}  bxc6 {[%clk 0:02:35]} 10. Qd2 {[%clk 0:02:48]}  d5 {[%clk 0:02:16]} 11. exd5 {[%clk 0:02:40]}  cxd5 {[%clk 0:02:12]} 12. Be2 {[%clk 0:02:30]}  Nf6 {[%clk 0:01:56]} 13. Bxf6 {[%clk 0:02:20]}  gxf6 {[%clk 0:01:55]} 14. O-O-O {[%clk 0:02:19]}  Bd7 {[%clk 0:01:43]} 15. Rhe1 {[%clk 0:02:15]}  Qc7 {[%clk 0:01:18]} 16. Qd4 {[%clk 0:02:05]}  Bxc3 {[%clk 0:01:03]} 17. bxc3 {[%clk 0:02:00]}  Qe5 {[%clk 0:00:47]} 18. Bb5 {[%clk 0:01:38]}  Qxd4 {[%clk 0:00:18]} 19. Bxd7+ {[%clk 0:01:37]}  Kxd7 {[%clk 0:00:18]} 20. cxd4 {[%clk 0:01:37]}  Rhc8 {[%clk 0:00:17]} 21. Re3 {[%clk 0:01:34]}  Rc4 {[%clk 0:00:17]} 22. Rb3 {[%clk 0:01:32]}  Rac8 {[%clk 0:00:16]} 23. Rd2 {[%clk 0:01:32]}  R8c7 {[%clk 0:00:15]} 24. Kb2 {[%clk 0:01:32]}  a5 {[%clk 0:00:15]} 25. c3 {[%clk 0:01:31]}  a4 {[%clk 0:00:14]} 26. Ra3 {[%clk 0:01:31]}  Rb7+ {[%clk 0:00:14]} 27. Kc2 {[%clk 0:01:31]}  Rc6 {[%clk 0:00:13]} 28. Rxa4 {[%clk 0:01:25]}  Rcb6 {[%clk 0:00:13]} 29. Kd3 {[%clk 0:01:23]}  Rb1 {[%clk 0:00:13]} 30. Ra8 {[%clk 0:01:21]}  e5 {[%clk 0:00:13]} 31. Rf8 {[%clk 0:01:19]}  e4+ {[%clk 0:00:12]} 32. Ke2 {[%clk 0:01:19]}  Ke6 {[%clk 0:00:11]} 33. Rh8 {[%clk 0:01:17]}  R7b2 {[%clk 0:00:11]} 34. Rxh7 {[%clk 0:01:16]}  Rxd2+ {[%clk 0:00:11]} 35. Kxd2 {[%clk 0:01:17]}  Rb2+ {[%clk 0:00:11]} 36. Ke3 {[%clk 0:01:18]}  Rc2 {[%clk 0:00:10]} 37. h4 {[%clk 0:01:19]}  Rxc3+ {[%clk 0:00:10]} 38. Ke2 {[%clk 0:01:19]}  Ra3 {[%clk 0:00:08]} 39. h5 {[%clk 0:01:19]}  Rxa2+ {[%clk 0:00:08]} 40. Ke3 {[%clk 0:01:20]}  Ra1 {[%clk 0:00:08]} 41. g4 {[%clk 0:01:19]}  Rg1 {[%clk 0:00:07]} 42. f3 {[%clk 0:01:17]}  Rg3 {[%clk 0:00:05]} 43. h6 {[%clk 0:01:15]}  Rxf3+ {[%clk 0:00:05]} 44. Ke2 {[%clk 0:01:15]}  Rh3 {[%clk 0:00:05]} 45. Rg7 {[%clk 0:01:15]}  Ke7 {[%clk 0:00:04]} 46. Rh7 {[%clk 0:01:14]}  Ke6 {[%clk 0:00:01]} 47. Rh8 {[%clk 0:01:14]} 1-0


[Site "https://www.chess.com"]

[Event "Titled Tuesday Blitz May 10 Early 2022"]
[White "Jaskolka, Tomasz"]
[Black "Hua, Lefong"]
[WhiteFideId "1170791"]
[BlackFideId "2602253"]
[WhiteElo "2073"]
[BlackElo "2602"]
[Result "0-1"]
[Round "09"]
[TimeControl "180+1"]
[Date "2022.05.11"]
[WhiteClock "0:00:54"]
[BlackClock "0:01:31"]

1. d4 {[%clk 0:03:00]}  Nf6 {[%clk 0:02:57]} 2. Bf4 {[%clk 0:03:00]}  g6 {[%clk 0:02:57]} 3. Nc3 {[%clk 0:03:00]}  d5 {[%clk 0:02:57]} 4. e3 {[%clk 0:03:01]}  Bg7 {[%clk 0:02:56]} 5. h4 {[%clk 0:03:01]}  c6 {[%clk 0:02:56]} 6. Nf3 {[%clk 0:02:59]}  Bg4 {[%clk 0:02:52]} 7. Be2 {[%clk 0:02:59]}  Bxf3 {[%clk 0:02:52]} 8. Bxf3 {[%clk 0:02:59]}  Nbd7 {[%clk 0:02:50]} 9. h5 {[%clk 0:02:53]}  Qb6 {[%clk 0:02:47]} 10. Qd2 {[%clk 0:02:47]}  O-O-O {[%clk 0:02:39]} 11. O-O-O {[%clk 0:02:46]}  Rhe8 {[%clk 0:02:39]} 12. hxg6 {[%clk 0:02:41]}  hxg6 {[%clk 0:02:39]} 13. e4 {[%clk 0:02:13]}  dxe4 {[%clk 0:02:34]} 14. Nxe4 {[%clk 0:02:12]}  Nxe4 {[%clk 0:02:29]} 15. Bxe4 {[%clk 0:02:13]}  Nc5 {[%clk 0:02:22]} 16. Bf3 {[%clk 0:01:59]}  Rxd4 {[%clk 0:02:14]} 17. Qe2 {[%clk 0:01:36]}  Rxf4 {[%clk 0:02:00]} 18. c3 {[%clk 0:01:30]}  Ra4 {[%clk 0:01:46]} 19. a3 {[%clk 0:01:02]}  Bxc3 {[%clk 0:01:39]} 20. bxc3 {[%clk 0:01:01]}  Rxa3 {[%clk 0:01:37]} 21. Qc2 {[%clk 0:00:54]}  Nb3+ {[%clk 0:01:32]} 22. Kb2 {[%clk 0:00:54]}  Nd4+ {[%clk 0:01:31]} 0-1


[Site "https://www.chess.com"]

[Event "Titled Tuesday Blitz May 10 Early 2022"]
[White "Juhasz, Agoston"]
[Black "Shtyka, Sergey"]
[WhiteFideId "778346"]
[BlackFideId "4138465"]
[WhiteElo "2211"]
[BlackElo "2014"]
[Result "1-0"]
[Round "09"]
[TimeControl "180+1"]
[Date "2022.05.11"]
[WhiteClock "0:00:20"]
[BlackClock "0:00:14"]

1. e4 {[%clk 0:02:45]}  c5 {[%clk 0:02:59]} 2. Nf3 {[%clk 0:02:44]}  d6 {[%clk 0:02:59]} 3. Nc3 {[%clk 0:02:41]}  Nc6 {[%clk 0:02:58]} 4. d4 {[%clk 0:02:39]}  cxd4 {[%clk 0:02:58]} 5. Nxd4 {[%clk 0:02:40]}  g6 {[%clk 0:02:57]} 6. Be3 {[%clk 0:02:38]}  Bg7 {[%clk 0:02:57]} 7. Qd2 {[%clk 0:02:35]}  Nf6 {[%clk 0:02:57]} 8. f3 {[%clk 0:02:34]}  O-O {[%clk 0:02:56]} 9. O-O-O {[%clk 0:02:26]}  d5 {[%clk 0:02:56]} 10. Qe1 {[%clk 0:02:22]}  e5 {[%clk 0:02:51]} 11. Nxc6 {[%clk 0:02:22]}  bxc6 {[%clk 0:02:51]} 12. exd5 {[%clk 0:02:23]}  Nxd5 {[%clk 0:02:51]} 13. Bc4 {[%clk 0:02:22]}  Be6 {[%clk 0:02:49]} 14. Kb1 {[%clk 0:02:23]}  Rb8 {[%clk 0:02:41]} 15. Bb3 {[%clk 0:02:19]}  Qe7 {[%clk 0:02:27]} 16. Ne4 {[%clk 0:01:53]}  Nxe3 {[%clk 0:02:21]} 17. Qxe3 {[%clk 0:01:54]}  Bxb3 {[%clk 0:02:07]} 18. axb3 {[%clk 0:01:55]}  a5 {[%clk 0:01:58]} 19. Qc5 {[%clk 0:01:53]}  Qb7 {[%clk 0:01:42]} 20. Qc4 {[%clk 0:01:39]}  Qb6 {[%clk 0:01:19]} 21. Nc5 {[%clk 0:01:35]}  Rfd8 {[%clk 0:00:57]} 22. Nd7 {[%clk 0:01:32]}  Qf2 {[%clk 0:00:45]} 23. Nxb8 {[%clk 0:01:29]}  Rxb8 {[%clk 0:00:45]} 24. Rd7 {[%clk 0:01:13]}  Rf8 {[%clk 0:00:42]} 25. Qf1 {[%clk 0:00:50]}  Qe3 {[%clk 0:00:40]} 26. Qd3 {[%clk 0:00:49]}  Qg5 {[%clk 0:00:37]} 27. g4 {[%clk 0:00:44]}  Qf4 {[%clk 0:00:36]} 28. h4 {[%clk 0:00:40]}  a4 {[%clk 0:00:35]} 29. bxa4 {[%clk 0:00:39]}  Qxa4 {[%clk 0:00:35]} 30. Rd8 {[%clk 0:00:39]}  Qa5 {[%clk 0:00:22]} 31. Rxf8+ {[%clk 0:00:38]}  Bxf8 {[%clk 0:00:23]} 32. c3 {[%clk 0:00:37]}  Qa4 {[%clk 0:00:19]} 33. h5 {[%clk 0:00:36]}  Qb3 {[%clk 0:00:15]} 34. hxg6 {[%clk 0:00:35]}  hxg6 {[%clk 0:00:15]} 35. Re1 {[%clk 0:00:32]}  Qe6 {[%clk 0:00:15]} 36. Re4 {[%clk 0:00:29]}  Bg7 {[%clk 0:00:14]} 37. Qd8+ {[%clk 0:00:26]}  Kh7 {[%clk 0:00:14]} 38. Re1 {[%clk 0:00:21]}  Bf6 {[%clk 0:00:14]} 39. Rh1+ {[%clk 0:00:20]} 1-0


[Site "https://www.chess.com"]

[Event "Titled Tuesday Blitz May 10 Early 2022"]
[White "Kamsky, Gata"]
[Black "Keymer, Vincent"]
[WhiteFideId "2000024"]
[BlackFideId "12940690"]
[WhiteElo "2645"]
[BlackElo "2548"]
[Result "1/2-1/2"]
[Round "09"]
[TimeControl "180+1"]
[Date "2022.05.10"]
[WhiteClock "0:00:13"]
[BlackClock "0:00:09"]

1. d4 {[%clk 0:03:00]}  Nf6 {[%clk 0:02:59]} 2. Nf3 {[%clk 0:03:00]}  e6 {[%clk 0:02:59]} 3. Bf4 {[%clk 0:02:58]}  c5 {[%clk 0:02:57]} 4. e3 {[%clk 0:02:56]}  Nc6 {[%clk 0:02:57]} 5. c3 {[%clk 0:02:53]}  h6 {[%clk 0:02:57]} 6. h4 {[%clk 0:02:49]}  d5 {[%clk 0:02:45]} 7. Nbd2 {[%clk 0:02:46]}  Bd6 {[%clk 0:02:44]} 8. Ne5 {[%clk 0:02:32]}  Qc7 {[%clk 0:02:36]} 9. Bb5 {[%clk 0:02:20]}  O-O {[%clk 0:02:27]} 10. Bxc6 {[%clk 0:02:18]}  bxc6 {[%clk 0:02:27]} 11. g4 {[%clk 0:02:17]}  cxd4 {[%clk 0:01:36]} 12. exd4 {[%clk 0:02:13]}  Nd7 {[%clk 0:01:15]} 13. Qe2 {[%clk 0:00:52]}  f6 {[%clk 0:01:06]} 14. Nxd7 {[%clk 0:00:50]}  Bxd7 {[%clk 0:01:05]} 15. Bxd6 {[%clk 0:00:50]}  Qxd6 {[%clk 0:01:05]} 16. O-O-O {[%clk 0:00:31]}  Qf4 {[%clk 0:00:50]} 17. f3 {[%clk 0:00:29]}  e5 {[%clk 0:00:46]} 18. Qh2 {[%clk 0:00:28]}  Qxh2 {[%clk 0:00:32]} 19. Rxh2 {[%clk 0:00:27]}  Rae8 {[%clk 0:00:30]} 20. Nb3 {[%clk 0:00:27]}  f5 {[%clk 0:00:30]} 21. g5 {[%clk 0:00:25]}  e4 {[%clk 0:00:23]} 22. f4 {[%clk 0:00:24]}  Re7 {[%clk 0:00:15]} 23. Nc5 {[%clk 0:00:23]}  Be8 {[%clk 0:00:15]} 24. Re1 {[%clk 0:00:22]}  Bh5 {[%clk 0:00:15]} 25. Re3 {[%clk 0:00:21]}  Bg4 {[%clk 0:00:14]} 26. b3 {[%clk 0:00:20]}  Kf7 {[%clk 0:00:14]} 27. Kd2 {[%clk 0:00:18]}  Ree8 {[%clk 0:00:13]} 28. Re1 {[%clk 0:00:18]}  Rh8 {[%clk 0:00:12]} 29. Ke3 {[%clk 0:00:15]}  Ke7 {[%clk 0:00:11]} 30. a4 {[%clk 0:00:14]}  Ref8 {[%clk 0:00:11]} 31. Rf1 {[%clk 0:00:14]}  Kd6 {[%clk 0:00:11]} 32. Rff2 {[%clk 0:00:13]}  Bh5 {[%clk 0:00:07]} 33. Rfg2 {[%clk 0:00:12]}  Bg4 {[%clk 0:00:05]} 34. Rf2 {[%clk 0:00:13]}  Bf3 {[%clk 0:00:06]} 35. Ra2 {[%clk 0:00:11]}  Rh7 {[%clk 0:00:04]} 36. g6 {[%clk 0:00:11]}  Rhh8 {[%clk 0:00:04]} 37. h5 {[%clk 0:00:11]}  Rb8 {[%clk 0:00:04]} 38. a5 {[%clk 0:00:11]}  Rb5 {[%clk 0:00:04]} 39. b4 {[%clk 0:00:12]}  Rbb8 {[%clk 0:00:05]} 40. Ra3 {[%clk 0:00:12]}  Rhf8 {[%clk 0:00:05]} 41. Raa2 {[%clk 0:00:12]}  Rb5 {[%clk 0:00:04]} 42. Ra3 {[%clk 0:00:12]}  Rbb8 {[%clk 0:00:05]} 43. Raa2 {[%clk 0:00:13]}  Bg4 {[%clk 0:00:05]} 44. Rab2 {[%clk 0:00:12]}  Rfe8 {[%clk 0:00:06]} 45. Ra2 {[%clk 0:00:12]}  Rb5 {[%clk 0:00:07]} 46. Rab2 {[%clk 0:00:12]}  Re7 {[%clk 0:00:07]} 47. Ra2 {[%clk 0:00:12]}  Rb8 {[%clk 0:00:08]} 48. Rab2 {[%clk 0:00:12]}  Rb5 {[%clk 0:00:08]} 49. Ra2 {[%clk 0:00:13]}  Rb8 {[%clk 0:00:08]} 50. Rab2 {[%clk 0:00:13]}  Rb5 {[%clk 0:00:09]} 1/2-1/2


[Site "https://www.chess.com"]

[Event "Titled Tuesday Blitz May 10 Early 2022"]
[White "Khabinets, Ivan"]
[Black "Demchenko, Anton"]
[WhiteFideId "14115980"]
[BlackFideId "4160258"]
[WhiteElo "2114"]
[BlackElo "2539"]
[Result "1-0"]
[Round "09"]
[TimeControl "180+1"]
[Date "2022.05.11"]
[WhiteClock "0:00:38"]
[BlackClock "0:00:03"]

1. e4 {[%clk 0:03:00]}  e5 {[%clk 0:02:58]} 2. Nf3 {[%clk 0:03:00]}  Nc6 {[%clk 0:02:55]} 3. Bb5 {[%clk 0:03:00]}  a6 {[%clk 0:02:55]} 4. Ba4 {[%clk 0:03:00]}  Nge7 {[%clk 0:02:55]} 5. Bb3 {[%clk 0:02:57]}  d5 {[%clk 0:02:53]} 6. exd5 {[%clk 0:02:55]}  Nxd5 {[%clk 0:02:54]} 7. O-O {[%clk 0:02:55]}  Be6 {[%clk 0:02:48]} 8. Re1 {[%clk 0:02:55]}  Bc5 {[%clk 0:02:49]} 9. c3 {[%clk 0:02:51]}  O-O {[%clk 0:02:46]} 10. d3 {[%clk 0:02:48]}  Bg4 {[%clk 0:02:15]} 11. h3 {[%clk 0:02:44]}  Bh5 {[%clk 0:02:15]} 12. Nbd2 {[%clk 0:02:43]}  Ba7 {[%clk 0:01:41]} 13. Ne4 {[%clk 0:02:37]}  Re8 {[%clk 0:01:29]} 14. Ng3 {[%clk 0:02:09]}  Bg6 {[%clk 0:01:28]} 15. Bg5 {[%clk 0:02:05]}  f6 {[%clk 0:01:27]} 16. Be3 {[%clk 0:01:51]}  Bxe3 {[%clk 0:01:25]} 17. Rxe3 {[%clk 0:01:48]}  Na5 {[%clk 0:01:21]} 18. Re1 {[%clk 0:01:42]}  Nxb3 {[%clk 0:01:18]} 19. Qxb3 {[%clk 0:01:43]}  Kh8 {[%clk 0:01:12]} 20. Rad1 {[%clk 0:01:41]}  b5 {[%clk 0:00:49]} 21. Ne4 {[%clk 0:01:32]}  Nf4 {[%clk 0:00:32]} 22. Qc2 {[%clk 0:01:30]}  Qd5 {[%clk 0:00:27]} 23. c4 {[%clk 0:01:24]}  bxc4 {[%clk 0:00:26]} 24. dxc4 {[%clk 0:01:22]}  Qc6 {[%clk 0:00:25]} 25. Nh4 {[%clk 0:01:15]}  Bh5 {[%clk 0:00:26]} 26. f3 {[%clk 0:01:11]}  Ne6 {[%clk 0:00:26]} 27. Nf5 {[%clk 0:01:07]}  Bg6 {[%clk 0:00:26]} 28. Ne3 {[%clk 0:01:04]}  Nd4 {[%clk 0:00:26]} 29. Qc3 {[%clk 0:01:02]}  Bxe4 {[%clk 0:00:26]} 30. fxe4 {[%clk 0:01:03]}  Qxe4 {[%clk 0:00:27]} 31. Nd5 {[%clk 0:01:03]}  Ne2+ {[%clk 0:00:23]} 32. Rxe2 {[%clk 0:01:03]}  Qxe2 {[%clk 0:00:24]} 33. Re1 {[%clk 0:01:04]}  Qh5 {[%clk 0:00:19]} 34. Nxc7 {[%clk 0:01:04]}  h6 {[%clk 0:00:17]} 35. Nxa8 {[%clk 0:01:03]}  Rxa8 {[%clk 0:00:18]} 36. c5 {[%clk 0:01:03]}  Rc8 {[%clk 0:00:16]} 37. b4 {[%clk 0:01:02]}  Qh4 {[%clk 0:00:15]} 38. Rd1 {[%clk 0:00:58]}  Qf4 {[%clk 0:00:07]} 39. a4 {[%clk 0:00:56]}  a5 {[%clk 0:00:06]} 40. b5 {[%clk 0:00:43]}  Qxa4 {[%clk 0:00:07]} 41. Rb1 {[%clk 0:00:44]}  Qa2 {[%clk 0:00:07]} 42. Rc1 {[%clk 0:00:41]}  e4 {[%clk 0:00:04]} 43. b6 {[%clk 0:00:41]}  Qd5 {[%clk 0:00:03]} 44. c6 {[%clk 0:00:39]}  e3 {[%clk 0:00:03]} 45. b7 {[%clk 0:00:38]} 1-0


[Site "https://www.chess.com"]

[Event "Titled Tuesday Blitz May 10 Early 2022"]
[White "Kosteniuk, Alexandra"]
[Black "talman67"]
[WhiteFideId "4128125"]
[WhiteElo "2469"]
[BlackElo "2361"]
[Result "1-0"]
[Round "09"]
[TimeControl "180+1"]
[Date "2022.05.11"]
[WhiteClock "0:00:10"]
[BlackClock "0:00:01"]

1. e4 {[%clk 0:03:00]}  e5 {[%clk 0:02:59]} 2. Nf3 {[%clk 0:03:00]}  Nc6 {[%clk 0:02:59]} 3. Bc4 {[%clk 0:02:59]}  Bc5 {[%clk 0:03:00]} 4. c3 {[%clk 0:02:59]}  Nf6 {[%clk 0:02:58]} 5. d4 {[%clk 0:02:59]}  exd4 {[%clk 0:02:58]} 6. cxd4 {[%clk 0:03:00]}  Bb4+ {[%clk 0:02:52]} 7. Nbd2 {[%clk 0:03:00]}  Nxe4 {[%clk 0:02:35]} 8. d5 {[%clk 0:02:58]}  Ne7 {[%clk 0:02:33]} 9. O-O {[%clk 0:02:56]}  Nxd2 {[%clk 0:02:29]} 10. Nxd2 {[%clk 0:02:57]}  Bxd2 {[%clk 0:02:22]} 11. Bxd2 {[%clk 0:02:55]}  d6 {[%clk 0:02:23]} 12. h4 {[%clk 0:02:53]}  O-O {[%clk 0:02:21]} 13. h5 {[%clk 0:02:53]}  h6 {[%clk 0:02:16]} 14. Qf3 {[%clk 0:02:53]}  Nf5 {[%clk 0:02:10]} 15. Bd3 {[%clk 0:02:47]}  Qf6 {[%clk 0:02:05]} 16. Rac1 {[%clk 0:02:42]}  c5 {[%clk 0:01:47]} 17. dxc6 {[%clk 0:02:42]}  bxc6 {[%clk 0:01:48]} 18. Qxc6 {[%clk 0:02:31]}  Rb8 {[%clk 0:01:44]} 19. Bc3 {[%clk 0:02:32]}  Qg5 {[%clk 0:01:35]} 20. Bxf5 {[%clk 0:02:14]}  Bb7 {[%clk 0:01:20]} 21. Bd2 {[%clk 0:02:01]}  Qxf5 {[%clk 0:01:04]} 22. Qxd6 {[%clk 0:01:52]}  Rbd8 {[%clk 0:01:01]} 23. Qf4 {[%clk 0:01:50]}  Qd5 {[%clk 0:01:00]} 24. f3 {[%clk 0:01:47]}  Qxd2 {[%clk 0:01:00]} 25. Qxd2 {[%clk 0:01:45]}  Rxd2 {[%clk 0:01:00]} 26. Rf2 {[%clk 0:01:46]}  Rfd8 {[%clk 0:00:54]} 27. Rc2 {[%clk 0:01:40]}  R2d5 {[%clk 0:00:45]} 28. Rc7 {[%clk 0:01:38]}  R8d7 {[%clk 0:00:43]} 29. Rfc2 {[%clk 0:01:37]}  Kf8 {[%clk 0:00:42]} 30. a4 {[%clk 0:01:29]}  a5 {[%clk 0:00:35]} 31. Rxd7 {[%clk 0:01:25]}  Rxd7 {[%clk 0:00:36]} 32. Kf2 {[%clk 0:01:25]}  Ke8 {[%clk 0:00:19]} 33. Ke3 {[%clk 0:01:19]}  Kd8 {[%clk 0:00:17]} 34. g4 {[%clk 0:01:16]}  Rd6 {[%clk 0:00:15]} 35. Rc4 {[%clk 0:01:10]}  Re6+ {[%clk 0:00:15]} 36. Kf2 {[%clk 0:01:09]}  Rf6 {[%clk 0:00:16]} 37. f4 {[%clk 0:01:10]}  Rd6 {[%clk 0:00:16]} 38. b4 {[%clk 0:01:04]}  axb4 {[%clk 0:00:14]} 39. Rxb4 {[%clk 0:01:05]}  Bc6 {[%clk 0:00:13]} 40. a5 {[%clk 0:01:04]}  Rd2+ {[%clk 0:00:13]} 41. Ke3 {[%clk 0:01:04]}  Ra2 {[%clk 0:00:12]} 42. Rb6 {[%clk 0:01:04]}  Kc7 {[%clk 0:00:08]} 43. Ra6 {[%clk 0:01:00]}  Bb7 {[%clk 0:00:07]} 44. Rb6 {[%clk 0:00:58]}  Rxa5 {[%clk 0:00:06]} 45. Rb3 {[%clk 0:00:59]}  Bc6 {[%clk 0:00:06]} 46. Rc3 {[%clk 0:00:57]}  Kd7 {[%clk 0:00:06]} 47. Rd3+ {[%clk 0:00:56]}  Ke6 {[%clk 0:00:06]} 48. Rc3 {[%clk 0:00:56]}  Bd5 {[%clk 0:00:05]} 49. Kf2 {[%clk 0:00:52]}  Ra2+ {[%clk 0:00:05]} 50. Kg3 {[%clk 0:00:52]}  Rb2 {[%clk 0:00:04]} 51. Re3+ {[%clk 0:00:48]}  Kd6 {[%clk 0:00:04]} 52. Re8 {[%clk 0:00:36]}  Rb3+ {[%clk 0:00:05]} 53. Kh2 {[%clk 0:00:35]}  Rf3 {[%clk 0:00:04]} 54. f5 {[%clk 0:00:35]}  f6 {[%clk 0:00:04]} 55. Rd8+ {[%clk 0:00:29]}  Kc5 {[%clk 0:00:03]} 56. Rd7 {[%clk 0:00:30]}  Rf2+ {[%clk 0:00:02]} 57. Kg3 {[%clk 0:00:28]}  Rf3+ {[%clk 0:00:02]} 58. Kh2 {[%clk 0:00:29]}  Kd4 {[%clk 0:00:03]} 59. Rxg7 {[%clk 0:00:28]}  Ke3 {[%clk 0:00:04]} 60. Rg6 {[%clk 0:00:28]}  Kf2 {[%clk 0:00:03]} 61. Rxf6 {[%clk 0:00:26]}  Re3 {[%clk 0:00:03]} 62. Rd6 {[%clk 0:00:25]}  Bf3 {[%clk 0:00:03]} 63. Rd2+ {[%clk 0:00:19]}  Kf1 {[%clk 0:00:04]} 64. Rd4 {[%clk 0:00:15]}  Kf2 {[%clk 0:00:02]} 65. f6 {[%clk 0:00:12]}  Be2 {[%clk 0:00:01]} 66. Rf4+ {[%clk 0:00:10]} 1-0


[Site "https://www.chess.com"]

[Event "Titled Tuesday Blitz May 10 Early 2022"]
[White "Kozak, Adam"]
[Black "Barp, Alberto"]
[WhiteFideId "753246"]
[BlackFideId "872555"]
[WhiteElo "2459"]
[BlackElo "2229"]
[Result "1/2-1/2"]
[Round "09"]
[TimeControl "180+1"]
[Date "2022.05.10"]
[WhiteClock "0:00:17"]
[BlackClock "0:00:11"]

1. e4 {[%clk 0:02:59]}  e5 {[%clk 0:02:58]} 2. Nf3 {[%clk 0:02:59]}  Nc6 {[%clk 0:02:58]} 3. c3 {[%clk 0:02:58]}  Nf6 {[%clk 0:02:50]} 4. d4 {[%clk 0:02:57]}  Nxe4 {[%clk 0:02:50]} 5. Bb5 {[%clk 0:02:55]}  exd4 {[%clk 0:02:46]} 6. O-O {[%clk 0:02:52]}  Be7 {[%clk 0:02:43]} 7. Re1 {[%clk 0:02:49]}  Nd6 {[%clk 0:02:12]} 8. Bd3 {[%clk 0:02:23]}  O-O {[%clk 0:02:05]} 9. cxd4 {[%clk 0:02:23]}  Ne8 {[%clk 0:02:03]} 10. Nc3 {[%clk 0:02:20]}  d5 {[%clk 0:02:00]} 11. Qb3 {[%clk 0:02:13]}  Nf6 {[%clk 0:01:59]} 12. Bg5 {[%clk 0:02:11]}  Bg4 {[%clk 0:01:47]} 13. Ne5 {[%clk 0:02:11]}  Be6 {[%clk 0:01:34]} 14. Qxb7 {[%clk 0:02:07]}  Nxd4 {[%clk 0:01:26]} 15. Be3 {[%clk 0:02:07]}  Nf5 {[%clk 0:01:10]} 16. Bxf5 {[%clk 0:02:03]}  Bxf5 {[%clk 0:01:11]} 17. Nc6 {[%clk 0:02:03]}  Qd7 {[%clk 0:01:10]} 18. Nxe7+ {[%clk 0:02:03]}  Qxe7 {[%clk 0:01:11]} 19. Bxa7 {[%clk 0:02:03]}  Qd7 {[%clk 0:00:59]} 20. Rad1 {[%clk 0:01:58]}  Be6 {[%clk 0:00:52]} 21. a4 {[%clk 0:01:52]}  Qd6 {[%clk 0:00:43]} 22. Nb5 {[%clk 0:01:49]}  Qb4 {[%clk 0:00:42]} 23. Bd4 {[%clk 0:01:43]}  c5 {[%clk 0:00:30]} 24. Bxf6 {[%clk 0:01:39]}  gxf6 {[%clk 0:00:31]} 25. Qc7 {[%clk 0:01:35]}  Rxa4 {[%clk 0:00:30]} 26. Nc3 {[%clk 0:01:31]}  Qa5 {[%clk 0:00:21]} 27. Qd6 {[%clk 0:01:25]}  Rd4 {[%clk 0:00:20]} 28. Ra1 {[%clk 0:01:18]}  Qb4 {[%clk 0:00:19]} 29. Re3 {[%clk 0:01:15]}  Rg4 {[%clk 0:00:17]} 30. h3 {[%clk 0:01:13]}  Rg5 {[%clk 0:00:17]} 31. Ra7 {[%clk 0:00:57]}  Qxb2 {[%clk 0:00:16]} 32. Rxe6 {[%clk 0:00:56]}  fxe6 {[%clk 0:00:15]} 33. Qxe6+ {[%clk 0:00:53]}  Kh8 {[%clk 0:00:14]} 34. Qe7 {[%clk 0:00:50]}  Qc1+ {[%clk 0:00:14]} 35. Kh2 {[%clk 0:00:48]}  Qf4+ {[%clk 0:00:14]} 36. Kg1 {[%clk 0:00:44]}  Qc1+ {[%clk 0:00:14]} 37. Kh2 {[%clk 0:00:43]}  Qf4+ {[%clk 0:00:14]} 38. Kh1 {[%clk 0:00:41]}  Qc1+ {[%clk 0:00:11]} 39. Kh2 {[%clk 0:00:17]} 1/2-1/2


[Site "https://www.chess.com"]

[Event "Titled Tuesday Blitz May 10 Early 2022"]
[White "Kozak, Antoni"]
[Black "Mitrabha, Guha"]
[WhiteFideId "21832030"]
[BlackFideId "5057000"]
[WhiteElo "2322"]
[BlackElo "2468"]
[Result "0-1"]
[Round "09"]
[TimeControl "180+1"]
[Date "2022.05.10"]
[WhiteClock "0:00:02"]
[BlackClock "0:00:54"]

1. Nf3 {[%clk 0:03:00]}  g6 {[%clk 0:02:58]} 2. c4 {[%clk 0:02:58]}  Bg7 {[%clk 0:02:57]} 3. Nc3 {[%clk 0:02:58]}  d6 {[%clk 0:02:58]} 4. d4 {[%clk 0:02:56]}  Nc6 {[%clk 0:02:58]} 5. d5 {[%clk 0:02:50]}  Ne5 {[%clk 0:02:58]} 6. Nxe5 {[%clk 0:02:50]}  Bxe5 {[%clk 0:02:59]} 7. e4 {[%clk 0:02:47]}  Bg7 {[%clk 0:02:56]} 8. Be3 {[%clk 0:02:47]}  Nf6 {[%clk 0:02:56]} 9. Be2 {[%clk 0:02:46]}  O-O {[%clk 0:02:55]} 10. O-O {[%clk 0:02:46]}  e5 {[%clk 0:02:54]} 11. c5 {[%clk 0:02:38]}  h5 {[%clk 0:02:53]} 12. f3 {[%clk 0:02:28]}  h4 {[%clk 0:02:50]} 13. Rc1 {[%clk 0:02:18]}  Nh5 {[%clk 0:02:47]} 14. Re1 {[%clk 0:02:11]}  Nf4 {[%clk 0:02:38]} 15. Bf1 {[%clk 0:02:11]}  Bd7 {[%clk 0:02:38]} 16. cxd6 {[%clk 0:02:00]}  cxd6 {[%clk 0:02:39]} 17. Nb5 {[%clk 0:02:00]}  Bxb5 {[%clk 0:02:39]} 18. Bxb5 {[%clk 0:01:59]}  h3 {[%clk 0:02:39]} 19. gxh3 {[%clk 0:01:47]}  Nxh3+ {[%clk 0:02:27]} 20. Kg2 {[%clk 0:01:37]}  Qh4 {[%clk 0:02:26]} 21. Qd2 {[%clk 0:01:22]}  Bf6 {[%clk 0:02:21]} 22. Bd7 {[%clk 0:01:02]}  Kg7 {[%clk 0:01:52]} 23. Bh6+ {[%clk 0:00:45]}  Qxh6 {[%clk 0:01:35]} 24. Qxh6+ {[%clk 0:00:45]}  Kxh6 {[%clk 0:01:35]} 25. Bxh3 {[%clk 0:00:45]}  Bd8 {[%clk 0:01:35]} 26. Rf1 {[%clk 0:00:17]}  Bb6 {[%clk 0:01:34]} 27. Rc2 {[%clk 0:00:14]}  Kg5 {[%clk 0:01:33]} 28. Kh1 {[%clk 0:00:13]}  Rh8 {[%clk 0:01:32]} 29. Bd7 {[%clk 0:00:12]}  Rad8 {[%clk 0:01:31]} 30. Bb5 {[%clk 0:00:11]}  Rh4 {[%clk 0:01:30]} 31. Rg2+ {[%clk 0:00:09]}  Kf4 {[%clk 0:01:30]} 32. Be2 {[%clk 0:00:08]}  Ke3 {[%clk 0:01:28]} 33. Bd1 {[%clk 0:00:08]}  Rdh8 {[%clk 0:01:28]} 34. Re2+ {[%clk 0:00:08]}  Kf4 {[%clk 0:01:28]} 35. Rg2 {[%clk 0:00:09]}  f5 {[%clk 0:01:28]} 36. exf5 {[%clk 0:00:05]}  gxf5 {[%clk 0:01:27]} 37. Re1 {[%clk 0:00:05]}  Bd4 {[%clk 0:01:26]} 38. Ree2 {[%clk 0:00:04]}  Rh3 {[%clk 0:01:24]} 39. Rc2 {[%clk 0:00:03]}  R8h7 {[%clk 0:01:24]} 40. b4 {[%clk 0:00:03]}  a6 {[%clk 0:01:18]} 41. Rc8 {[%clk 0:00:03]}  Ke3 {[%clk 0:01:16]} 42. Rf8 {[%clk 0:00:02]}  Kf4 {[%clk 0:01:06]} 43. Bc2 {[%clk 0:00:02]}  R7h5 {[%clk 0:01:05]} 44. Bd1 {[%clk 0:00:03]}  Bc3 {[%clk 0:01:02]} 45. Rf6 {[%clk 0:00:02]}  Bxb4 {[%clk 0:01:01]} 46. Rf7 {[%clk 0:00:02]}  b5 {[%clk 0:01:00]} 47. Ra7 {[%clk 0:00:02]}  a5 {[%clk 0:01:00]} 48. Rb7 {[%clk 0:00:03]}  Ke3 {[%clk 0:00:59]} 49. Rxb5 {[%clk 0:00:03]}  R5h4 {[%clk 0:01:00]} 50. a3 {[%clk 0:00:03]}  Rd4 {[%clk 0:00:59]} 51. Be2 {[%clk 0:00:01]}  Bd2 {[%clk 0:00:54]} 52. Rb3+ {[%clk 0:00:02]}  Kf4 {[%clk 0:00:54]} 53. Rf2 {[%clk 0:00:02]}  Be3 {[%clk 0:00:53]} 54. Rg2 {[%clk 0:00:02]}  Rd2 {[%clk 0:00:53]} 55. Rb5 {[%clk 0:00:02]}  Ra2 {[%clk 0:00:53]} 56. Rxa5 {[%clk 0:00:02]}  Ra1+ {[%clk 0:00:53]} 57. Bf1 {[%clk 0:00:01]}  Rxf1+ {[%clk 0:00:53]} 58. Rg1 {[%clk 0:00:02]}  Rxg1# {[%clk 0:00:54]} 0-1


[Site "https://www.chess.com"]